fUSD/lending_fUSD_20250607
["ID","MTS","AMOUNT","RATE_DAILY","PERIOD"]
[364859276,1749279041620,-480.0,0.00027397,5]
[364859277,1749279041630,-209.69832132,0.00027397,5]
[364859278,1749279041640,-480.0,0.00027397,5]
[364859279,1749279041650,-480.0,0.00027397,5]
[364859280,1749279041660,-480.0,0.00027397,2]
[364859281,1749279041670,-480.0,0.00027397,5]
[364859282,1749279041680,-480.0,0.00027397,5]
[364859283,1749279041689,-511.2964648,0.00027397,5]
[364859284,1749279041699,-480.0,0.00027397,5]
[364859285,1749279041710,-480.0,0.00027397,5]
[364859286,1749279041719,-480.0,0.00027397,5]
[364859287,1749279041730,-480.0,0.00027397,5]
[364859288,1749279041740,-593.78,0.00027397,5]
[364859289,1749279041751,-511.82,0.00027397,5]
[364859290,1749279041763,-150.00837808,0.00027397,5]
[364859291,1749279041776,-480.0,0.00027397,5]
[364859292,1749279041787,-480.0,0.00027397,5]
[364859293,1749279041797,-480.0,0.00027397,5]
[364859294,1749279041811,-496.77805165,0.00027397,5]
[364859295,1749279041822,-484.81840201,0.00027397,5]
[364859296,1749279041834,-1307.03,0.00027397,5]
[364859297,1749279041845,-1163.74,0.00027397,5]
[364859298,1749279041857,-480.0,0.00027397,5]
[364859299,1749279041868,-480.0,0.00027397,5]
[364859300,1749279041879,-482.33615052,0.00027397,5]
[364859301,1749279041890,-773.81,0.00027397,5]
[364859302,1749279041901,-529.43157275,0.00027397,5]
[364859303,1749279041912,-480.0,0.00027397,5]
[364859304,1749279041923,-741.92,0.00027397,5]
[364859305,1749279041935,-561.12,0.00027397,5]
[364859306,1749279041946,-480.0,0.00027397,5]
[364859307,1749279041958,-487.15055125,0.00027397,5]
[364859308,1749279041969,-480.0,0.00027397,5]
[364859309,1749279041980,-247.33722154,0.00027397,5]
[364859310,1749279041991,-350.28167534,0.00027397,5]
[364859311,1749279042002,-493.01108362,0.00027397,5]
[364859312,1749279042012,-480.0,0.00027397,5]
[364859313,1749279042023,-497.65,0.00027397,5]
[364859314,1749279042033,-480.0,0.00027397,5]
[364859315,1749279042044,-480.0,0.00027397,5]
[364859316,1749279042055,-480.0,0.00027397,5]
[364859317,1749279042068,-480.0,0.00027397,5]
[364859318,1749279042078,-300.0,0.00027397,5]
[364859319,1749279042088,-480.0,0.00027397,5]
[364859320,1749279042099,-480.0,0.00027397,5]
[364859321,1749279042110,-480.0,0.00027397,5]
[364859322,1749279042120,-480.0,0.00027397,5]
[364859323,1749279042131,-961.55,0.00027397,5]
[364859324,1749279042142,-480.0,0.00027397,5]
[364859325,1749279042153,-480.0,0.00027397,5]
[364859326,1749279042163,-480.0,0.00027397,5]
[364859327,1749279042174,-480.0,0.00027397,5]
[364859328,1749279042185,-433.07089719,0.00027397,5]
[364859329,1749279042197,-1092.4,0.00027397,5]
[364859330,1749279042207,-480.0,0.00027397,5]
[364859331,1749279042218,-480.0,0.00027397,5]
[364859332,1749279042229,-480.0,0.00027397,5]
[364859333,1749279042240,-483.54,0.00027397,5]
[364859334,1749279042251,-580.63,0.00027397,5]
[364859335,1749279042263,-480.0,0.00027397,5]
[364859336,1749279042274,-489.46585648,0.00027397,5]
[364859337,1749279042287,-480.0,0.00027397,5]
[364859338,1749279042298,-506.1,0.00027397,5]
[364859339,1749279042310,-486.16993969,0.00027397,5]
[364859340,1749279042321,-480.0,0.00027397,5]
[364859341,1749279042332,-480.0,0.00027397,5]
[364859342,1749279042343,-455.59345022,0.00027397,5]
[364859344,1749279042354,-480.0,0.00027397,5]
[364859345,1749279042366,-1268.78,0.00027397,5]
[364859346,1749279042377,-845.75,0.00027397,5]
[364859347,1749279042388,-480.0,0.00027397,5]
[364859348,1749279042400,-480.0,0.00027397,5]
[364859349,1749279042411,-503.25,0.00027397,5]
[364859350,1749279042423,-480.0,0.00027397,5]
[364859351,1749279042439,-499.88405491,0.00027397,5]
[364859352,1749279042449,-480.0,0.00027397,5]
[364859353,1749279042460,-676.54,0.00027397,5]
[364859354,1749279042472,-604.38,0.00027397,5]
[364859355,1749279042482,-480.0,0.00027397,5]
[364859356,1749279042493,-480.0,0.00027397,5]
[364859357,1749279042505,-620.02,0.00027397,5]
[364859358,1749279042516,-491.30367506,0.00027397,5]
[364859360,1749279042526,-480.0,0.00027397,5]
[364859362,1749279042537,-496.98007809,0.00027397,5]
[364859364,1749279042548,-480.0,0.00027397,5]
[364859366,1749279042561,-480.0,0.00027397,5]
[364859367,1749279042572,-480.0,0.00027397,5]
[364859368,1749279042583,-480.0,0.00027397,5]
[364859369,1749279042596,-480.0,0.00027397,5]
[364859370,1749279042607,-155.16629765,0.00027397,5]
[364859371,1749279042618,-480.0,0.00027397,5]
[364859372,1749279042630,-480.0,0.00027397,5]
[364859373,1749279042640,-684.53,0.00027397,5]
[364859374,1749279042652,-829.76,0.00027397,5]
[364859375,1749279042663,-495.7883324,0.00027397,5]
[364859376,1749279042675,-480.0,0.00027397,5]
[364859377,1749279042687,-480.0,0.00027397,5]
[364859379,1749279042698,-491.6239372,0.00027397,5]
[364859380,1749279042709,-480.0,0.00027397,5]
[364859381,1749279042719,-480.0,0.00027397,5]
[364859382,1749279042844,-942.98,0.00027397,5]
[364859383,1749279042908,-481.04414073,0.00027397,5]
[364859384,1749279042918,-480.0,0.00027397,5]
[364859385,1749279042929,-480.0,0.00027397,5]
[364859386,1749279042939,-480.0,0.00027397,5]
[364859387,1749279042949,-480.0,0.00027397,5]
[364859388,1749279042959,-480.0,0.00027397,5]
[364859389,1749279042969,-482.9088306,0.00027397,5]
[364859390,1749279042978,-480.0,0.00027397,5]
[364859391,1749279042988,-345.79212705,0.00027397,5]
[364859392,1749279042999,-480.0,0.00027397,5]
[364859393,1749279043009,-480.0,0.00027397,5]
[364859394,1749279043019,-480.0,0.00027397,5]
[364859395,1749279043030,-480.0,0.00027397,5]
[364859396,1749279043041,-480.0,0.00027397,5]
[364859397,1749279043052,-480.0,0.00027397,5]
[364859398,1749279043063,-550.5,0.00027397,5]
[364859399,1749279043072,-480.0,0.00027397,5]
[364859400,1749279043081,-480.0,0.00027397,5]
[364859401,1749279043090,-480.0,0.00027397,5]
[364859402,1749279043100,-480.0,0.00027397,5]
[364859403,1749279043111,-480.0,0.00027397,5]
[364859404,1749279043120,-480.0,0.00027397,5]
[364859405,1749279043129,-952.7,0.00027397,5]
[364859406,1749279043139,-561.89,0.00027397,5]
[364859407,1749279043150,-405.99384227,0.00027397,5]
[364859408,1749279043159,-480.0,0.00027397,5]
[364859409,1749279043169,-480.0,0.00027397,5]
[364859410,1749279043179,-480.0,0.00027397,5]
[364859411,1749279043189,-485.90618444,0.00027397,5]
[364859412,1749279043198,-480.0,0.00027397,5]
[364859413,1749279043208,-480.0,0.00027397,5]
[364859414,1749279043217,-480.0,0.00027397,5]
[364859415,1749279043227,-480.0,0.00027397,5]
[364859416,1749279043238,-519.12495234,0.00027397,5]
[364859417,1749279043247,-480.0,0.00027397,5]
[364859418,1749279043257,-509.04,0.00027397,5]
[364859419,1749279043267,-480.0,0.00027397,5]
[364859420,1749279043277,-1113.45,0.00027397,5]
[364859421,1749279043287,-480.0,0.00027397,5]
[364859422,1749279043296,-480.0,0.00027397,5]
[364859423,1749279043306,-480.0,0.00027397,5]
[364859424,1749279043318,-480.0,0.00027397,5]
[364859425,1749279043328,-510.58,0.00027397,5]
[364859426,1749279043338,-480.0,0.00027397,5]
[364859427,1749279043348,-480.0,0.00027397,5]
[364859428,1749279043358,-624.96,0.00027397,5]
[364859429,1749279043368,-466.56905724,0.00027397,5]
[364859430,1749279043378,-480.0,0.00027397,5]
[364859431,1749279043388,-480.0,0.00027397,5]
[364859432,1749279043398,-480.0,0.00027397,5]
[364859433,1749279043407,-480.0,0.00027397,5]
[364859434,1749279043417,-480.0,0.00027397,5]
[364859435,1749279043429,-480.0,0.00027397,5]
[364859436,1749279043442,-509.42927945,0.00027397,5]
[364859437,1749279043452,-1106.46,0.00027397,5]
[364859438,1749279043462,-500.0,0.00027397,5]
[364859439,1749279043472,-480.0,0.00027397,5]
[364859440,1749279043482,-480.0,0.00027397,5]
[364859441,1749279043492,-500.0,0.00027397,5]
[364859442,1749279043502,-500.0,0.00027397,5]
[364859443,1749279043513,-500.0,0.00027397,5]
[364859444,1749279043523,-500.0,0.00027397,5]
[364859445,1749279043532,-379.5525958,0.00027397,5]
[364859446,1749279043542,-480.0,0.00027397,5]
[364859447,1749279043553,-480.0,0.00027397,5]
[364859448,1749279043565,-582.5,0.00027397,5]
[364859449,1749279043574,-463.78547554,0.00027397,5]
[364859450,1749279043584,-480.0,0.00027397,5]
[364859451,1749279043594,-480.0,0.00027397,5]
[364859452,1749279043603,-777.55,0.00027397,5]
[364859453,1749279043612,-1024.25,0.00027397,5]
[364859454,1749279043623,-603.55255205,0.00027397,5]
[364859455,1749279043633,-1444.88,0.00027397,5]
[364859456,1749279043643,-480.0,0.00027397,5]
[364859457,1749279043653,-722.96,0.00027397,5]
[364859458,1749279043662,-470.76019747,0.00027397,5]
[364859459,1749279043672,-480.0,0.00027397,5]
[364859460,1749279043682,-767.5,0.00027397,5]
[364859461,1749279043692,-480.0,0.00027397,5]
[364859462,1749279043702,-500.00740803,0.00027397,5]
[364859463,1749279043713,-480.0,0.00027397,5]
[364859464,1749279043722,-480.0,0.00027397,5]
[364859465,1749279043732,-634.7,0.00027397,5]
[364859466,1749279043741,-480.0,0.00027397,5]
[364859467,1749279043751,-480.0,0.00027397,5]
[364859468,1749279043761,-480.0,0.00027397,5]
[364859469,1749279043770,-753.65,0.00027397,5]
[364859470,1749279043781,-480.0,0.00027397,5]
[364859471,1749279043790,-480.0,0.00027397,5]
[364859472,1749279043799,-547.93,0.00027397,5]
[364859473,1749279043809,-480.0,0.00027397,5]
[364859474,1749279043818,-480.0,0.00027397,5]
[364859475,1749279043829,-480.0,0.00027397,5]
[364859476,1749279043838,-426.06823034,0.00027397,5]
[364859477,1749279043848,-480.0,0.00027397,5]
[364859478,1749279043860,-480.0,0.00027397,5]
[364859479,1749279043869,-904.43,0.00027397,5]
[364859480,1749279043880,-485.14824123,0.00027397,5]
[364859481,1749279043890,-662.39,0.00027397,5]
[364859482,1749279043900,-480.0,0.00027397,5]
[364859483,1749279043909,-492.1087559,0.00027397,5]
[364859484,1749279043919,-480.0,0.00027397,5]
[364859485,1749279043929,-150.0,0.00027397,5]
[364859486,1749279043938,-552.7,0.00027397,5]
[364859487,1749279043948,-480.0,0.00027397,5]
[364859488,1749279043957,-480.0,0.00027397,5]
[364859489,1749279043967,-480.0,0.00027397,5]
[364859490,1749279043980,-480.0,0.00027397,5]
[364859491,1749279043990,-502.82610311,0.00027397,5]
[364859492,1749279043999,-480.0,0.00027397,5]
[364859493,1749279044009,-1932.61,0.00027397,5]
[364859494,1749279044020,-480.0,0.00027397,5]
[364859495,1749279044030,-490.36658162,0.00027397,5]
[364859496,1749279044040,-427.63098731,0.00027397,5]
[364859497,1749279044050,-570.08323876,0.00027397,5]
[364859498,1749279044059,-1442.29,0.00027397,5]
[364859499,1749279044069,-428.45265322,0.00027397,5]
[364859500,1749279044078,-325.5077297,0.00027397,5]
[364859501,1749279044088,-480.0,0.00027397,5]
[364859502,1749279044099,-737.3,0.00027397,5]
[364859503,1749279044110,-853.62,0.00027397,5]
[364859504,1749279044121,-480.0,0.00027397,5]
[364859505,1749279044132,-480.0,0.00027397,5]
[364859506,1749279044141,-480.0,0.00027397,5]
[364859507,1749279044151,-480.0,0.00027397,5]
[364859508,1749279044161,-492.16538455,0.00027397,5]
[364859509,1749279044170,-910.02,0.00027397,5]
[364859510,1749279044180,-439.28510114,0.00027397,5]
[364859511,1749279044190,-480.0,0.00027397,5]
[364859512,1749279044200,-1000.0,0.00027397,5]
[364859513,1749279044209,-480.0,0.00027397,5]
[364859514,1749279044219,-480.0,0.00027397,5]
[364859515,1749279044228,-879.54,0.00027397,5]
[364859516,1749279044238,-424.48767831,0.00027397,5]
[364859517,1749279044248,-480.0,0.00027397,5]
[364859518,1749279044258,-444.52636198,0.00027397,5]
[364859519,1749279044268,-480.0,0.00027397,5]
[364859520,1749279044278,-480.0,0.00027397,5]
[364859521,1749279044289,-893.28,0.00027397,5]
[364859522,1749279044302,-518.76273438,0.00027397,5]
[364859523,1749279044324,-480.0,0.00027397,5]
[364859524,1749279044336,-553.41,0.00027397,5]
[364859525,1749279044346,-499.3343995,0.00027397,5]
[364859526,1749279044355,-150.0,0.00027397,5]
[364859527,1749279044365,-150.0,0.00027397,5]
[364859528,1749279044375,-455.65952385,0.00027397,5]
[364859529,1749279044386,-480.0,0.00027397,5]
[364859530,1749279044396,-488.52046706,0.00027397,5]
[364859531,1749279044407,-480.0,0.00027397,5]
[364859532,1749279044417,-918.01,0.00027397,5]
[364859533,1749279044431,-480.0,0.00027397,5]
[364859534,1749279044441,-494.65579468,0.00027397,5]
[364859535,1749279044451,-480.0,0.00027397,5]
[364859536,1749279044461,-480.0,0.00027397,5]
[364859537,1749279044472,-590.11,0.00027397,5]
[364859538,1749279044482,-497.98438443,0.00027397,5]
[364859539,1749279044492,-482.29380278,0.00027397,5]
[364859540,1749279044504,-480.0,0.00027397,5]
[364859541,1749279044904,-264.8104788,0.00027397,5]
[364859542,1749279044914,-495.21795497,0.00027397,5]
[364859543,1749279044924,-480.0,0.00027397,5]
[364859544,1749279044933,-480.0,0.00027397,5]
[364859545,1749279044942,-733.19,0.00027397,5]
[364859546,1749279044952,-480.0,0.00027397,5]
[364859547,1749279044962,-480.0,0.00027397,5]
[364859548,1749279044974,-480.0,0.00027397,5]
[364859549,1749279044983,-1387.38,0.00027397,5]
[364859550,1749279044992,-516.91233471,0.00027397,5]
[364859551,1749279045002,-480.0,0.00027397,5]
[364859552,1749279045011,-943.26,0.00027397,5]
[364859553,1749279045022,-250.0,0.00027397,5]
[364859554,1749279045031,-480.0,0.00027397,5]
[364859555,1749279045041,-480.0,0.00027397,5]
[364859556,1749279045051,-499.44479943,0.00027397,5]
[364859557,1749279045061,-552.99500692,0.00027397,5]
[364859558,1749279045071,-269.22639665,0.00027397,5]
[364859559,1749279045080,-480.0,0.00027397,5]
[364859560,1749279045090,-616.5992571,0.00027397,5]
[364859561,1749279045100,-480.0,0.00027397,5]
[364859562,1749279045109,-2163.97,0.00027397,5]
[364859563,1749279045118,-248.05098619,0.00027397,5]
[364859564,1749279045128,-488.18414687,0.00027397,5]
[364859565,1749279045138,-557.74,0.00027397,5]
[364859566,1749279045147,-457.8609667,0.00027397,5]
[364859567,1749279045157,-569.48,0.00027397,5]
[364859568,1749279045166,-1648.23,0.00027397,5]
[364859569,1749279045175,-480.0,0.00027397,5]
[364859570,1749279045185,-480.0,0.00027397,5]
[364859571,1749279045194,-480.0,0.00027397,5]
[364859572,1749279045203,-508.43320556,0.00027397,5]
[364859573,1749279045214,-346.74172017,0.00027397,5]
[364859574,1749279045224,-480.0,0.00027397,5]
[364859575,1749279045234,-480.0,0.00027397,5]
[364859576,1749279045244,-486.27741131,0.00027397,5]
[364859577,1749279045255,-480.0,0.00027397,5]
[364859578,1749279045265,-422.39032245,0.00027397,5]
[364859579,1749279045275,-547.00824585,0.00027397,5]
[364859580,1749279045285,-749.25,0.00027397,5]
[364859581,1749279045294,-488.5673688,0.00027397,5]
[364859582,1749279045304,-1412.46,0.00027397,5]
[364859583,1749279045313,-2857.82,0.00027397,5]
[364859584,1749279045323,-480.0,0.00027397,5]
[364859585,1749279045333,-622.48,0.00027397,5]
[364859586,1749279045343,-480.0,0.00027397,5]
[364859587,1749279045352,-569.07,0.00027397,5]
[364859588,1749279045362,-480.0,0.00027397,5]
[364859589,1749279045371,-480.0,0.00027397,5]
[364859590,1749279045381,-480.0,0.00027397,5]
[364859591,1749279045391,-480.0,0.00027397,5]
[364859592,1749279045400,-480.0,0.00027397,5]
[364859593,1749279045410,-2182.78,0.00027397,5]
[364859594,1749279045419,-480.0,0.00027397,5]
[364859595,1749279045430,-1214.41,0.00027397,5]
[364859596,1749279045443,-480.0,0.00027397,5]
[364859597,1749279045458,-665.13,0.00027397,5]
[364859598,1749279045469,-480.0,0.00027397,5]
[364859599,1749279045480,-480.0,0.00027397,5]
[364859600,1749279045490,-480.0,0.00027397,5]
[364859601,1749279045500,-919.54,0.00027397,5]
[364859602,1749279045510,-480.0,0.00027397,5]
[364859603,1749279045519,-480.0,0.00027397,5]
[364859604,1749279045529,-1367.55,0.00027397,5]
[364859605,1749279045539,-672.79,0.00027397,5]
[364859606,1749279045549,-480.0,0.00027397,5]
[364859608,1749279045560,-800.24,0.00027397,5]
[364859610,1749279045577,-480.0,0.00027397,5]
[364859612,1749279045587,-480.0,0.00027397,5]
[364859615,1749279045597,-480.0,0.00027397,5]
[364859616,1749279045607,-687.36,0.00027397,5]
[364859617,1749279045618,-1597.05,0.00027397,5]
[364859618,1749279045628,-480.0,0.00027397,5]
[364859619,1749279045638,-480.0,0.00027397,5]
[364859620,1749279045648,-480.0,0.00027397,5]
[364859621,1749279045658,-1041.28,0.00027397,5]
[364859622,1749279045668,-480.0,0.00027397,5]
[364859623,1749279045680,-7867.19,0.00027397,5]
[364859624,1749279045689,-480.0,0.00027397,5]
[364859625,1749279045700,-480.0,0.00027397,5]
[364859626,1749279045712,-1192.45,0.00027397,5]
[364859627,1749279045723,-480.0,0.00027397,5]
[364859628,1749279045733,-480.0,0.00027397,5]
[364859629,1749279045743,-480.0,0.00027397,5]
[364859630,1749279045752,-363.52855532,0.00027397,5]
[364859631,1749279045763,-1207.24,0.00027397,5]
[364859632,1749279045774,-3159.58,0.00027397,5]
[364859633,1749279045784,-488.86804027,0.00027397,5]
[364859634,1749279045795,-5778.32,0.00027397,5]
[364859635,1749279045805,-3649.83,0.00027397,5]
[364859636,1749279045817,-674.63,0.00027397,5]
[364859637,1749279045827,-597.56,0.00027397,5]
[364859638,1749279045836,-1605.15,0.00027397,5]
[364859639,1749279045846,-480.0,0.00027397,5]
[364859640,1749279045855,-493.8228521,0.00027397,5]
[364859641,1749279045865,-1795.02,0.00027397,5]
[364859642,1749279045874,-8058.131732,0.00027397,5]
[364859643,1749279045884,-480.0,0.00027397,5]
[364859644,1749279045894,-675.89,0.00027397,5]
[364859645,1749279045916,-285.01789484,0.00027397,5]
[364859646,1749279045929,-1938.91,0.00027397,2]
[364859647,1749279045941,-1000.0,0.00027397,5]
[364859648,1749279045952,-2908.68,0.00027397,5]
[364859649,1749279045964,-480.0,0.00027397,5]
[364859650,1749279045975,-3129.04,0.00027397,5]
[364859651,1749279045986,-463.51099575,0.00027397,5]
[364859652,1749279045996,-2008.91,0.00027397,5]
[364859653,1749279046007,-490.35252368,0.00027397,5]
[364859654,1749279046018,-1382.23,0.00027397,5]
[364859655,1749279046028,-480.0,0.00027397,5]
[364859656,1749279046038,-1071.67,0.00027397,5]
[364859657,1749279046049,-1071.67,0.00027397,5]
[364859658,1749279046061,-769.38,0.00027397,5]
[364859659,1749279046075,-1071.67,0.00027397,5]
[364859660,1749279046085,-1071.67,0.00027397,5]
[364859661,1749279046096,-1071.67,0.00027397,5]
[364859662,1749279046106,-480.0,0.00027397,5]
[364859663,1749279046117,-1071.67,0.00027397,5]
[364859664,1749279046128,-1071.67,0.00027397,5]
[364859666,1749279046138,-1071.67,0.00027397,5]
[364859668,1749279046148,-480.0,0.00027397,5]
[364859670,1749279046159,-1071.67,0.00027397,5]
[364859672,1749279046169,-1071.67,0.00027397,5]
[364859674,1749279046180,-480.0,0.00027397,5]
[364859676,1749279046191,-162.958386,0.00027397,5]
[364859678,1749279046202,-502.85533557,0.00027397,5]
[364859679,1749279046212,-473.31153417,0.00027397,5]
[364859682,1749279046224,-480.0,0.00027397,5]
[364859684,1749279046234,-1395.16,0.00027397,5]
[364859686,1749279046244,-158.963045,0.00027397,5]
[364859688,1749279046256,-1513.66,0.00027397,5]
[364859690,1749279046266,-847.7,0.00027397,5]
[364859692,1749279046276,-516.22989476,0.00027397,5]
[364859694,1749279046287,-6791.81,0.00027397,5]
[364859696,1749279046297,-302.98574352,0.00027397,5]
[364859698,1749279046307,-480.0,0.00027397,5]
[364859700,1749279046320,-450.91416255,0.00027397,5]
[364859701,1749279046330,-480.0,0.00027397,5]
[364859702,1749279046347,-480.0,0.00027397,5]
[364859703,1749279046359,-514.18406807,0.00027397,5]
[364859704,1749279046371,-1741.41,0.00027397,5]
[364859705,1749279046383,-2409.13,0.00027397,5]
[364859706,1749279046393,-943.3,0.00027397,5]
[364859707,1749279046405,-483.6911322,0.00027397,5]
[364859708,1749279046416,-756.95,0.00027397,5]
[364859709,1749279046430,-480.0,0.00027397,5]
[364859710,1749279046441,-10907.26,0.00027397,5]
[364859711,1749279046451,-504.49048182,0.00027397,5]
[364859712,1749279046463,-480.0,0.00027397,5]
[364859713,1749279046477,-496.53576103,0.00027397,5]
[364859714,1749279046491,-1163.13,0.00027397,5]
[364859715,1749279046502,-480.0,0.00027397,5]
[364859716,1749279046514,-480.0,0.00027397,5]
[364859717,1749279046525,-480.0,0.00027397,5]
[364859718,1749279046535,-2029.78,0.00027397,5]
[364859719,1749279046546,-480.0,0.00027397,5]
[364859720,1749279046557,-6863.550341,0.00027397,5]
[364859721,1749279046569,-480.0,0.00027397,5]
[364859722,1749279046581,-480.0,0.00027397,5]
[364859723,1749279046592,-345.52919244,0.00027397,5]
[364859724,1749279046603,-498.96611695,0.00027397,5]
[364859725,1749279046614,-572.83,0.00027397,5]
[364859726,1749279046625,-480.0,0.00027397,5]
[364859727,1749279046636,-480.0,0.00027397,2]
[364859728,1749279046648,-508.07734909,0.00027397,5]
[364859729,1749279046659,-500.0,0.00027397,5]
[364859730,1749279046670,-500.0,0.00027397,5]
[364859731,1749279046680,-500.0,0.00027397,5]
[364859732,1749279046691,-500.0,0.00027397,5]
[364859733,1749279046702,-500.0,0.00027397,5]
[364859734,1749279046713,-480.0,0.00027397,5]
[364859735,1749279046723,-500.0,0.00027397,5]
[364859736,1749279046735,-500.0,0.00027397,5]
[364859737,1749279046745,-1033.36,0.00027397,5]
[364859738,1749279046756,-500.0,0.00027397,5]
[364859739,1749279046766,-516.95631481,0.00027397,5]
[364859740,1749279046777,-1518.79,0.00027397,5]
[364859741,1749279046789,-500.0,0.00027397,5]
[364859742,1749279046799,-500.0,0.00027397,5]
[364859743,1749279046809,-480.0,0.00027397,5]
[364859744,1749279046820,-500.0,0.00027397,5]
[364859745,1749279046831,-500.0,0.00027397,5]
[364859746,1749279046841,-500.0,0.00027397,5]
[364859747,1749279046852,-480.0,0.00027397,5]
[364859748,1749279046862,-500.0,0.00027397,5]
[364859749,1749279046872,-500.0,0.00027397,5]
[364859750,1749279046884,-500.0,0.00027397,5]
[364859751,1749279046893,-500.0,0.00027397,5]
[364859752,1749279046904,-500.0,0.00027397,5]
[364859753,1749279046916,-500.0,0.00027397,5]
[364859754,1749279046927,-500.0,0.00027397,5]
[364859755,1749279046936,-500.0,0.00027397,5]
[364859756,1749279046946,-500.0,0.00027397,5]
[364859757,1749279046956,-480.61834349,0.00027397,5]
[364859758,1749279046966,-240.53,0.00027397,5]
[364859759,1749279046975,-1860.84,0.00027397,5]
[364859760,1749279046985,-480.0,0.00027397,5]
[364859761,1749279046995,-684.54,0.00027397,5]
[364859762,1749279047005,-480.0,0.00027397,5]
[364859763,1749279047015,-480.0,0.00027397,5]
[364859764,1749279047025,-480.0,0.00027397,5]
[364859765,1749279047035,-500.0,0.00027397,2]
[364859766,1749279047044,-480.0,0.00027397,5]
[364859767,1749279047054,-1274.05,0.00027397,5]
[364859768,1749279047065,-794.18,0.00027397,5]
[364859769,1749279047075,-499.74979819,0.00027397,5]
[364859770,1749279047085,-485.346493,0.00027397,5]
[364859771,1749279047094,-480.0,0.00027397,5]
[364859772,1749279047104,-1233.4,0.00027397,5]
[364859773,1749279047113,-480.0,0.00027397,5]
[364859774,1749279047123,-350.353554,0.00027397,5]
[364859775,1749279047133,-1830.02,0.00027397,5]
[364859776,1749279047142,-480.0,0.00027397,5]
[364859777,1749279047152,-928.69,0.00027397,5]
[364859778,1749279047162,-500.0,0.00027397,2]
[364859779,1749279047172,-524.34401014,0.00027397,5]
[364859780,1749279047182,-480.0,0.00027397,5]
[364859781,1749279047192,-480.0,0.00027397,5]
[364859782,1749279047202,-480.0,0.00027397,5]
[364859783,1749279047212,-480.0,0.00027397,5]
[364859784,1749279047222,-836.0,0.00027397,5]
[364859785,1749279047232,-655.28,0.00027397,5]
[364859786,1749279047243,-482.35146621,0.00027397,5]
[364859787,1749279047253,-1731.59,0.00027397,5]
[364859788,1749279047263,-480.0,0.00027397,5]
[364859789,1749279047273,-552.47,0.00027397,5]
[364859790,1749279047283,-477.36890142,0.00027397,5]
[364859791,1749279047294,-480.0,0.00027397,2]
[364859792,1749279047304,-480.0,0.00027397,5]
[364859793,1749279047315,-3711.19,0.00027397,5]
[364859794,1749279047325,-480.0,0.00027397,5]
[364859795,1749279047335,-10413.24,0.00027397,5]
[364859796,1749279047346,-480.0,0.00027397,5]
[364859797,1749279047356,-560.0,0.00027397,5]
[364859798,1749279047366,-480.0,0.00027397,5]
[364859799,1749279047376,-162.958385,0.00027397,5]
[364859800,1749279047386,-480.0,0.00027397,5]
[364859801,1749279047397,-1327.36,0.00027397,5]
[364859802,1749279047407,-480.0,0.00027397,5]
[364859803,1749279047417,-480.0,0.00027397,5]
[364859804,1749279047427,-426.52362575,0.00027397,5]